bitfinex-derivatives/quotes_ETHF0:USTF0_20260116
["timestamp","ask_amount","ask_price","bid_price","bid_amount"]
[1768559838541,1.39770009,3302.1,3300.8,0.13732946]
[1768559838743,0.85663698,3302.2,3300.8,0.13732946]
[1768559838934,1.39769767,3302.1,3300.8,0.13732946]
[1768559839131,0.85663698,3302.2,3300.8,0.13732946]
[1768559839331,1.397656,3302.1,3300.8,0.13732946]
[1768559839637,0.85663698,3302.2,3300.8,0.13732946]
[1768559839945,1.39755541,3302.1,3300.8,0.13732946]
[1768559840144,0.85663698,3302.2,3300.8,0.13732946]
[1768559840445,1.39753121,3302.1,3300.8,0.13732946]
[1768559840644,0.43598756,3302.0,3300.8,0.13732946]
[1768559840844,0.85663698,3302.2,3300.8,0.13732946]
[1768559841140,1.39741652,3302.1,3300.8,0.13732946]
[1768559841349,0.85663698,3302.2,3300.8,0.13732946]
[1768559841350,1.39732266,3302.0,3300.8,0.13732946]
[1768559841545,0.15145,3302.4,3300.8,0.13732946]
[1768559841847,1.39728375,3302.3,3300.8,0.13732946]
[1768559842039,1.39728375,3302.2,3300.8,0.13732946]
[1768559842238,1.39728375,3302.1,3300.8,0.13732946]
[1768559842439,0.43592981,3302.0,3300.8,0.13732946]
[1768559842738,0.15145,3302.4,3300.8,0.13732946]
[1768559842939,1.39705459,3302.3,3300.8,0.13732946]
[1768559843141,1.39705459,3302.2,3300.8,0.13732946]
[1768559843343,1.39705459,3302.1,3300.8,0.13732946]
[1768559843548,0.15145,3302.4,3300.8,0.13732946]
[1768559843549,0.43586099,3302.0,3300.8,0.13732946]
[1768559843848,0.15145,3302.4,3300.8,0.13732946]
[1768559844041,1.3969971,3302.3,3300.8,0.13732946]
[1768559844243,1.3969971,3302.2,3300.8,0.13732946]
[1768559844444,1.3969971,3302.1,3300.8,0.13732946]
[1768559844648,0.43584409,3302.0,3300.8,0.13732946]
[1768559844848,0.15145,3302.4,3300.8,0.13732946]
[1768559845050,1.39675058,3302.3,3300.8,0.13732946]
[1768559845345,1.39675058,3302.2,3300.8,0.13732946]
[1768559845546,1.39675058,3302.1,3300.8,0.13732946]
[1768559845751,0.43576043,3302.0,3300.8,0.13732946]
[1768559845941,0.15146,3302.3,3300.8,0.13732946]
[1768559846142,1.3967343,3302.2,3300.8,0.13732946]
[1768559846449,0.15146,3302.3,3300.8,0.13732946]
[1768559846450,1.3967343,3302.1,3300.8,0.13732946]
[1768559846644,1.3967343,3302.0,3300.8,0.13732946]
[1768559846849,0.43575587,3301.9,3300.8,0.13732946]
[1768559847058,0.15146,3302.3,3300.8,0.13732946]
[1768559847351,1.39700755,3302.2,3300.8,0.13732946]
[1768559847557,1.39700755,3302.1,3300.8,0.13732946]
[1768559847747,1.39700755,3302.0,3300.8,0.13732946]
[1768559848050,0.43590508,3301.9,3300.8,0.13732946]
[1768559848252,0.15146,3302.3,3300.8,0.13732946]
[1768559848449,1.3976386,3302.2,3300.8,0.13732946]
[1768559848750,1.3976386,3302.1,3300.8,0.13732946]
[1768559849053,1.3976386,3302.0,3300.8,0.13732946]
[1768559849351,1.39804412,3301.9,3300.8,0.13732946]
[1768559849543,0.43604035,3301.8,3300.8,0.13732946]
[1768559849744,0.15146,3302.3,3300.8,0.13732946]
[1768559849944,1.39823965,3302.2,3300.8,0.13732946]
[1768559850151,1.39823965,3302.1,3300.8,0.13732946]
[1768559850350,1.39823965,3302.0,3300.8,0.13732946]
[1768559850551,1.39823965,3301.9,3300.8,0.13732946]
[1768559850750,0.43623267,3301.8,3300.8,0.13732946]
[1768559850944,0.15146,3302.3,3300.8,0.13732946]
[1768559851146,1.39867143,3302.2,3300.8,0.13732946]
[1768559851346,1.39867143,3302.1,3300.8,0.13732946]
[1768559851549,1.39867143,3302.0,3300.8,0.13732946]
[1768559851750,1.39867143,3301.9,3300.8,0.13732946]
[1768559852051,0.43623265,3301.8,3300.8,0.13732946]
[1768559852250,0.43623265,3301.7,3300.8,0.13732946]
[1768559852451,0.15146,3302.3,3300.8,0.13732946]
[1768559852652,1.39972709,3302.2,3300.8,0.13732946]
[1768559852847,1.39972709,3302.1,3300.8,0.13732946]
[1768559853047,1.39972709,3302.0,3300.8,0.13732946]
[1768559853254,1.39972709,3301.9,3300.8,0.13732946]
[1768559853552,1.39972709,3301.8,3300.8,0.13732946]
[1768559853748,0.43656665,3301.7,3300.8,0.13732946]
[1768559853954,0.15146,3302.3,3300.8,0.13732946]
[1768559854158,1.39982163,3302.2,3300.8,0.13732946]
[1768559854352,1.39982163,3302.1,3300.8,0.13732946]
[1768559854564,1.39982163,3302.0,3300.8,0.13732946]
[1768559854757,1.39982163,3301.9,3300.8,0.13732946]
[1768559855053,1.39982163,3301.8,3300.8,0.13732946]
[1768559855254,0.43659753,3301.7,3300.8,0.13732946]
[1768559855454,0.15146,3302.3,3300.8,0.13732946]
[1768559855657,1.40016355,3302.2,3300.8,0.13732946]
[1768559855859,1.40016355,3302.1,3300.8,0.13732946]
[1768559856157,1.40016355,3302.0,3300.8,0.13732946]
[1768559856461,1.40016355,3301.9,3300.8,0.13732946]
[1768559856661,1.40016355,3301.8,3300.8,0.13732946]
[1768559856853,0.43670888,3301.7,3300.8,0.13732946]
[1768559857055,0.15146,3302.3,3300.8,0.13732946]
[1768559857253,1.40038262,3302.2,3300.8,0.13732946]
[1768559857458,1.40038262,3302.1,3300.8,0.13732946]
[1768559857659,1.40038262,3302.0,3300.8,0.13732946]
[1768559857858,1.40038262,3301.9,3300.8,0.13732946]
[1768559858059,1.40038262,3301.8,3300.8,0.13732946]
[1768559858359,0.43680572,3301.7,3300.8,0.13732946]
[1768559858560,0.15146,3302.3,3300.8,0.13732946]
[1768559858754,1.40059608,3302.2,3300.8,0.13732946]
[1768559858948,1.40059608,3302.1,3300.8,0.13732946]
[1768559859154,1.40059608,3302.0,3300.8,0.13732946]
[1768559859351,1.40059608,3301.9,3300.8,0.13732946]
[1768559859550,1.40059608,3301.8,3300.8,0.13732946]
[1768559859759,0.43685291,3301.7,3300.8,0.13732946]
[1768559859954,0.15146,3302.3,3300.8,0.13732946]
[1768559860156,1.4007228,3302.2,3300.8,0.13732946]
[1768559860357,1.4007228,3302.1,3300.8,0.13732946]
[1768559860560,1.4007228,3302.0,3300.8,0.13732946]
[1768559860854,1.4007228,3301.9,3300.8,0.13732946]
[1768559861060,1.4007228,3301.8,3300.8,0.13732946]
[1768559861260,0.15146,3302.3,3300.8,0.13732946]
[1768559861261,0.43689756,3301.7,3300.8,0.13732946]
[1768559861462,0.15146,3302.3,3300.8,0.13732946]
[1768559861661,1.40058769,3302.2,3300.8,0.13732946]
[1768559861860,1.40058769,3302.1,3300.8,0.13732946]
[1768559862077,0.15146,3302.3,3300.8,0.13732946]
[1768559862078,1.40058769,3302.0,3300.8,0.13732946]
[1768559862277,1.40058769,3301.9,3300.8,0.13732946]
[1768559862484,1.40058769,3301.8,3300.8,0.13732946]
[1768559862684,1.40058769,3301.7,3300.8,0.13732946]
[1768559862881,1.40058769,3301.6,3300.8,0.13732946]
[1768559863077,0.43682366,3301.5,3300.8,0.13732946]
[1768559863377,0.43678026,3301.4,3300.8,0.13732946]
[1768559863574,0.15147,3302.1,3300.8,0.13732946]
[1768559863775,1.40045927,3302.0,3300.8,0.13732946]
[1768559863979,1.40045927,3301.9,3300.8,0.13732946]
[1768559864181,1.40045927,3301.8,3300.8,0.13732946]
[1768559864377,1.40045927,3301.7,3300.8,0.13732946]
[1768559864579,1.40041085,3301.6,3300.8,0.13732946]
[1768559864780,1.40041085,3301.5,3300.8,0.13732946]
[1768559864980,0.4367346,3301.4,3300.8,0.13732946]
[1768559865181,0.15147,3302.1,3300.8,0.13732946]
[1768559865485,1.4001457,3302.0,3300.8,0.13732946]
[1768559865676,1.4001457,3301.9,3300.3,0.14107103]
[1768559865982,1.00859177,3301.3,3299.9,0.14107103]
[1768559866178,1.4001457,3301.2,3299.9,0.14107103]
[1768559866378,1.4001457,3301.1,3299.9,0.14107103]
[1768559866573,1.4001457,3301.0,3299.9,0.14107103]
[1768559866774,1.4001457,3300.9,3299.9,0.14107103]
[1768559866973,1.40468468,3300.8,3299.9,0.14107103]
[1768559867181,1.4001457,3300.7,3299.9,0.14107103]
[1768559867382,0.00453898,3300.8,3299.9,0.14107103]
[1768559867581,0.43563557,3300.7,3299.9,0.14107103]
[1768559867881,0.00453898,3300.8,3299.9,0.14107103]
[1768559868080,0.43563491,3300.7,3299.9,0.14107103]
[1768559868276,0.00453898,3300.8,3299.9,0.14107103]
[1768559868482,0.00453898,3300.8,3299.1,1.00869177]
[1768559868483,0.43539825,3300.7,3299.5,0.14107103]
[1768559868782,0.00453898,3300.8,3299.5,0.14107103]
[1768559868973,1.39597218,3300.7,3299.5,0.14107103]
[1768559869173,0.00453898,3300.8,3299.5,0.14107103]
[1768559869375,0.43514958,3300.7,3299.5,0.14107103]
[1768559869577,0.00453898,3300.8,3299.5,0.14107103]
[1768559869782,0.43514835,3300.7,3299.5,0.14107103]
[1768559869982,0.00453898,3300.8,3299.5,0.14107103]
[1768559870284,0.43514874,3300.7,3299.8,0.14484127]
[1768559870481,0.00453898,3300.8,3299.8,0.14484127]
[1768559870782,0.43496985,3300.7,3299.8,0.14484127]
[1768559870983,0.00453898,3300.8,3299.8,0.14484127]
[1768559871478,0.43496951,3300.7,3299.1,0.1516]
[1768559871679,0.00453898,3300.8,3299.1,0.1516]
[1768559872576,0.00453898,3300.8,3299.1,0.15409578]
[1768559873478,1.39331545,3300.7,3299.1,0.15409578]
[1768559873676,0.00453898,3300.8,3299.2,0.14234811]
[1768559873872,1.39331999,3300.7,3299.2,0.14234811]
[1768559874076,0.00453898,3300.8,3299.2,0.14234811]
[1768559874272,0.43443413,3300.7,3299.2,0.14234811]
[1768559874476,0.00453898,3300.8,3299.2,0.14234811]
[1768559874779,0.43443413,3300.7,3299.2,0.14234811]
[1768559875077,0.00453898,3300.8,3299.2,0.14234811]
[1768559875278,0.43434122,3300.7,3299.2,0.14234811]
[1768559875482,0.00453898,3300.8,3299.2,0.14234811]
[1768559875680,0.43436852,3300.7,3299.2,0.14234811]
[1768559875881,0.00453898,3300.8,3299.2,0.14234811]
[1768559881984,0.00453898,3300.8,3299.5,0.14234811]
[1768559887496,0.1515,3301.4,3299.5,0.14234811]
[1768559887696,1.39348016,3301.3,3299.5,0.14234811]
[1768559887897,0.1515,3301.4,3299.5,0.14234811]
[1768559888097,1.39347638,3301.3,3299.5,0.14234811]
[1768559888288,0.1515,3301.4,3299.5,0.14234811]
[1768559888489,0.43479805,3301.3,3299.5,0.14234811]
[1768559888690,0.1515,3301.4,3299.5,0.14234811]
[1768559888890,0.43479815,3301.3,3299.5,0.14234811]
[1768559889193,0.1515,3301.4,3299.5,0.14234811]
[1768559889497,0.4349304,3301.3,3299.5,0.14234811]
[1768559889695,0.1515,3301.4,3299.5,0.14234811]
[1768559889896,0.43493061,3301.3,3299.5,0.14234811]
[1768559890099,0.1515,3301.4,3299.5,0.14234811]
[1768559890285,1.39128711,3301.3,3299.5,0.14234811]
[1768559890491,0.1515,3301.4,3299.5,0.14234811]
[1768559890796,0.43160018,3301.3,3299.5,0.14234811]
[1768559890996,0.1515,3301.4,3299.5,0.14234811]
[1768559891198,1.39123259,3301.3,3299.5,0.14234811]
[1768559891393,0.1515,3301.4,3299.5,0.14234811]
[1768559891592,1.39174201,3301.3,3299.5,0.14234811]
[1768559891793,0.1515,3301.4,3299.5,0.14234811]
[1768559891993,1.39174317,3301.3,3299.5,0.14234811]
[1768559892296,0.43196104,3301.2,3299.5,0.14234811]
[1768559892498,0.1515,3301.4,3299.5,0.14234811]
[1768559892702,1.3923886,3301.3,3299.5,0.14234811]
[1768559892993,1.3923886,3301.3,3299.4,1.00868177]
[1768559892994,0.43196133,3301.2,3299.9,0.14234811]
[1768559893300,0.1515,3301.4,3299.9,0.14234811]
[1768559893598,1.39282086,3301.3,3299.9,0.14234811]
[1768559893794,0.43209512,3301.2,3299.9,0.14234811]
[1768559893997,0.1515,3301.4,3299.9,0.14234811]
[1768559894293,1.3928132,3301.3,3299.9,0.14234811]
[1768559894494,1.3928132,3301.2,3299.9,0.14234811]
[1768559894690,0.1515,3301.4,3299.9,0.14234811]
[1768559894889,1.39319948,3301.3,3299.9,0.14234811]
[1768559895094,1.39319948,3301.2,3299.9,0.14234811]
[1768559895395,0.1515,3301.4,3299.9,0.14234811]
[1768559895396,0.4322123,3301.1,3299.9,0.14234811]
[1768559895595,0.1515,3301.4,3299.9,0.14234811]
[1768559895811,1.3935199,3301.3,3299.9,0.14234811]
[1768559895992,1.3935199,3301.2,3299.9,0.14234811]
[1768559896197,0.1515,3301.4,3299.9,0.14234811]
[1768559896404,1.39327283,3301.3,3299.9,0.14234811]
[1768559896594,1.39327283,3301.2,3299.9,0.14234811]
[1768559896798,0.1515,3301.4,3299.9,0.14234811]
[1768559897098,1.39318998,3301.3,3299.9,0.14234811]
[1768559897404,0.43220993,3301.2,3299.9,0.14234811]
[1768559897587,0.1515,3301.4,3299.9,0.14234811]
[1768559897792,0.1515,3301.4,3300.3,0.14234811]
[1768559897995,0.10667906,3302.3,3300.3,0.14234811]
[1768559898193,1.39321894,3302.2,3300.3,0.14234811]
[1768559898396,0.15149,3301.7,3300.3,0.14234811]
[1768559898593,1.39321894,3301.6,3300.3,0.14234811]
[1768559898797,1.39321894,3301.5,3300.3,0.14234811]
[1768559898997,0.15149,3301.7,3300.3,0.14234811]
[1768559899199,1.39293757,3301.6,3300.3,0.14234811]
[1768559899503,1.39293757,3301.5,3300.3,0.14234811]
[1768559899702,0.15149,3301.7,3300.3,0.14234811]
[1768559899892,1.39274362,3301.6,3300.3,0.14234811]
[1768559900096,0.43207741,3301.5,3300.3,0.14234811]
[1768559900300,0.15149,3301.7,3300.3,0.14234811]
[1768559900500,1.39256237,3301.6,3300.3,0.14234811]
[1768559900704,0.43201919,3301.5,3300.3,0.14234811]
[1768559901002,0.15149,3301.7,3300.3,0.14234811]
[1768559901203,1.39256905,3301.6,3300.3,0.14234811]
[1768559901398,0.43202126,3301.5,3300.4,1.00055292]
[1768559901602,0.15149,3301.7,3300.4,1.00055292]
[1768559901799,1.39243197,3301.6,3300.4,1.00055292]
[1768559901999,0.43197854,3301.5,3300.4,1.00055292]
[1768559902200,0.15149,3301.7,3300.4,1.00055292]
[1768559902405,1.3923432,3301.6,3300.4,1.00055292]
[1768559902599,0.43194984,3301.5,3300.4,1.00055292]
[1768559902800,0.15149,3301.7,3300.4,1.00055292]
[1768559903001,1.39234432,3301.6,3300.4,1.00055292]
[1768559903200,0.43195018,3301.5,3300.4,1.00055292]
[1768559903401,0.15149,3301.7,3300.4,1.00055292]
[1768559903602,1.39229528,3301.6,3300.4,1.00055292]
[1768559903809,0.43193471,3301.5,3300.4,1.00055292]
[1768559904109,0.15149,3301.7,3300.4,1.00055292]
[1768559904411,1.3922799,3301.6,3300.4,1.00055292]
[1768559904708,0.43195425,3301.5,3300.4,1.00055292]
[1768559904899,0.15149,3301.7,3300.4,1.00055292]
[1768559905203,1.39235934,3301.6,3300.4,1.00055292]
[1768559905410,1.39235934,3301.5,3300.4,0.14330572]
[1768559905610,0.15149,3301.7,3300.4,1.00055292]
[1768559905800,1.39248273,3301.6,3300.4,1.00055292]
[1768559906001,1.39248273,3301.5,3300.4,1.00055292]
[1768559906201,0.15149,3301.7,3300.4,1.00055292]
[1768559906402,1.39264008,3301.6,3300.4,1.00055292]
[1768559906602,1.39264008,3301.5,3300.4,1.00055292]
[1768559906811,0.15149,3301.7,3300.4,1.00055292]
[1768559907003,1.39264014,3301.6,3300.4,1.00055292]
[1768559907204,1.39264014,3301.5,3300.4,1.00055292]
[1768559907406,0.15149,3301.7,3300.4,1.00055292]
[1768559907603,1.39285541,3301.6,3300.4,1.00055292]
[1768559907805,1.39285541,3301.5,3300.4,1.00055292]
[1768559908007,0.15149,3301.7,3300.4,1.00055292]
[1768559908208,1.39285542,3301.6,3300.4,1.00055292]
[1768559908406,1.39285542,3301.5,3300.4,1.00055292]
[1768559908606,0.15149,3301.7,3300.4,1.00055292]
[1768559908809,1.38975151,3301.6,3300.4,1.00055292]
[1768559909006,0.15149,3301.7,3300.4,1.00055292]
[1768559909007,1.38975151,3301.5,3300.4,1.00055292]
[1768559909206,0.42892341,3301.4,3300.4,1.00055292]
[1768559909421,0.15149,3301.7,3300.5,0.13671676]
[1768559909711,1.3901195,3301.6,3300.5,0.13671676]
[1768559909907,1.3901195,3301.5,3300.5,0.13671676]
[1768559910104,1.3901195,3301.4,3300.5,0.13671676]
[1768559910407,0.15149,3301.7,3300.5,0.13671676]
[1768559910607,1.39030803,3301.6,3300.5,0.13671676]
[1768559910815,1.39030803,3301.5,3300.5,0.13671676]
[1768559910999,0.9613862,3301.4,3300.5,0.13671676]
[1768559911204,0.15149,3301.7,3300.5,0.13671676]
[1768559911404,1.39044391,3301.6,3300.5,0.13671676]
[1768559911610,1.39044391,3301.5,3300.5,0.13671676]
[1768559911812,1.39044391,3301.4,3300.5,0.13671676]
[1768559912012,0.15149,3301.7,3300.5,0.13671676]
[1768559912200,1.39073823,3301.6,3300.5,0.13671676]
[1768559912406,1.39073823,3301.5,3300.5,0.13671676]
[1768559912700,1.39073823,3301.4,3300.5,0.13671676]
[1768559912903,0.15149,3301.7,3300.5,0.13671676]
[1768559913100,1.39093262,3301.6,3300.5,0.13671676]
[1768559913305,1.39093262,3301.5,3300.5,0.13671676]
[1768559913511,1.39093262,3301.4,3300.5,0.13671676]
[1768559913813,0.15149,3301.7,3300.5,0.13671676]
[1768559914115,1.39107242,3301.6,3300.5,0.13671676]
[1768559914310,1.39107242,3301.5,3300.5,0.13671676]
[1768559914509,1.3911218,3301.4,3300.5,0.13671676]
[1768559914711,0.15149,3301.7,3300.5,0.13671676]
[1768559914911,1.39123348,3301.6,3300.5,0.13671676]
[1768559915117,1.39123348,3301.5,3300.5,0.13671676]
[1768559915310,1.39123348,3301.4,3300.5,0.13671676]
[1768559915502,0.15149,3301.7,3300.5,0.13671676]
[1768559915708,1.39143542,3301.6,3300.5,0.13671676]
[1768559916016,1.39143542,3301.5,3300.5,0.13671676]
[1768559916317,1.39143542,3301.4,3300.5,0.13671676]
[1768559916617,0.42926802,3301.3,3300.5,0.13671676]
[1768559916814,0.15149,3301.7,3300.5,0.13671676]
[1768559917014,1.39163527,3301.6,3300.5,0.13671676]
[1768559917209,1.39163527,3301.5,3300.5,0.13671676]
[1768559917408,1.39163527,3301.4,3300.5,0.13671676]
[1768559917604,0.42932922,3301.3,3300.5,0.13671676]
[1768559917809,0.15149,3301.7,3300.5,0.13671676]
[1768559918116,1.39182512,3301.6,3300.5,0.13671676]
[1768559918322,1.39182512,3301.5,3300.5,0.13671676]
[1768559918623,1.39182512,3301.4,3300.5,0.13671676]
[1768559918914,0.42938727,3301.3,3300.5,0.13671676]
[1768559919118,0.42945845,3301.2,3300.5,0.13671676]
[1768559919320,0.15149,3301.7,3300.5,0.13671676]
[1768559919517,1.39207257,3301.6,3300.5,0.13671676]
[1768559919718,1.39207257,3301.5,3300.5,0.13671676]
[1768559920018,1.39207257,3301.4,3300.5,0.13671676]
[1768559920213,0.4294626,3301.3,3300.5,0.13671676]
[1768559920419,0.4294626,3301.2,3300.5,0.13671676]
[1768559920619,0.15149,3301.7,3300.5,0.13671676]
[1768559920827,1.39217661,3301.6,3300.5,0.13671676]
[1768559921120,1.39217661,3301.5,3300.5,0.13671676]
[1768559921320,1.39217661,3301.4,3300.5,0.13671676]
[1768559921520,0.42949445,3301.3,3300.5,0.13671676]
[1768559921820,0.42949445,3301.2,3300.5,0.13671676]
[1768559922018,0.15149,3301.7,3300.5,0.13671676]
[1768559922215,1.39228824,3301.6,3300.5,0.13671676]
[1768559922415,1.39228824,3301.5,3300.5,0.13671676]
[1768559922622,1.39228824,3301.4,3300.5,0.13671676]
[1768559922812,1.39228824,3301.3,3300.5,0.13671676]
[1768559923013,0.42952835,3301.2,3300.5,0.13671676]
[1768559923218,0.15149,3301.6,3300.5,0.13671676]
[1768559923522,1.39255077,3301.5,3300.5,0.13671676]
[1768559923722,1.39255077,3301.4,3300.5,0.13671676]
[1768559923918,1.39255077,3301.3,3300.5,0.13671676]
[1768559924123,0.42960669,3301.2,3300.5,0.13671676]
[1768559924321,0.15149,3301.6,3300.5,0.13671676]
[1768559924523,1.39269735,3301.5,3300.5,0.13671676]
[1768559924822,1.39269735,3301.4,3300.5,0.13671676]
[1768559925019,1.39269735,3301.3,3300.5,0.13671676]
[1768559925220,0.42965178,3301.2,3300.5,0.13671676]
[1768559925422,0.15149,3301.6,3300.5,0.13671676]
[1768559925625,1.39288781,3301.5,3300.5,0.13671676]
[1768559925835,1.39288781,3301.4,3300.5,0.99396396]
[1768559926021,1.39288781,3301.3,3300.5,0.99396396]
[1768559926327,0.42970847,3301.2,3300.5,0.99396396]
[1768559926526,0.15149,3301.6,3300.5,0.99396396]
[1768559926719,1.39328788,3301.5,3300.5,0.99396396]
[1768559926919,1.39328788,3301.4,3300.5,0.99396396]
[1768559927121,1.39328788,3301.3,3300.5,0.99396396]
[1768559927330,0.42982709,3301.2,3300.5,0.99396396]
[1768559927525,0.15149,3301.6,3300.5,0.99396396]
[1768559927824,1.39380317,3301.5,3300.5,0.99396396]
[1768559928027,1.39380317,3301.4,3300.5,0.99396396]
[1768559928325,1.39380317,3301.3,3300.5,0.99396396]
[1768559928626,0.42999989,3301.2,3300.5,0.99396396]
[1768559928829,0.15149,3301.6,3300.5,0.99396396]
[1768559929028,1.39386985,3301.5,3300.5,0.99396396]
[1768559929227,1.39386985,3301.4,3300.5,0.99396396]
[1768559929531,1.39386985,3301.3,3300.5,0.99396396]
[1768559929725,0.43002046,3301.2,3300.5,0.99396396]
[1768559930025,0.15149,3301.6,3300.5,0.99396396]
[1768559930225,1.39387046,3301.5,3300.5,0.99396396]
[1768559930418,1.39387046,3301.4,3300.5,0.99396396]
[1768559930615,1.39387046,3301.3,3300.5,0.99396396]
[1768559930820,0.43002142,3301.2,3300.5,0.99396396]
[1768559931019,0.15149,3301.6,3300.5,0.99396396]
[1768559931215,1.39387078,3301.5,3300.5,0.13671676]
[1768559931430,1.39387078,3301.4,3300.5,0.13671676]
[1768559931626,1.39387078,3301.3,3300.5,0.13671676]
[1768559931826,0.43002161,3301.2,3300.5,0.13671676]
[1768559932024,0.15149,3301.6,3300.5,0.13671676]
[1768559932224,1.39386718,3301.5,3300.5,0.13671676]
[1768559932423,1.39386718,3301.4,3300.5,0.13671676]
[1768559932625,1.39386718,3301.3,3300.5,0.13671676]
[1768559932826,0.4300205,3301.2,3300.5,0.13671676]
[1768559933028,0.15149,3301.6,3300.5,0.13671676]
[1768559933227,1.39387705,3301.5,3300.5,0.13671676]
[1768559933428,1.39387705,3301.4,3300.5,0.13671676]
[1768559933628,1.39387705,3301.3,3300.5,0.13671676]
[1768559933928,0.43002444,3301.2,3300.5,0.13671676]
[1768559934129,0.15149,3301.6,3300.5,0.13671676]
[1768559934318,1.39387846,3301.5,3300.5,0.13671676]
[1768559934523,1.39387846,3301.4,3300.5,0.13671676]
[1768559934819,1.39387846,3301.3,3300.5,0.13671676]
[1768559935018,0.43002487,3301.2,3300.5,0.13671676]
[1768559935222,0.15149,3301.6,3300.5,0.13671676]
[1768559935418,1.39015336,3301.5,3300.5,0.13671676]
[1768559935623,1.39015336,3301.4,3300.5,0.13671676]
[1768559935826,1.39015336,3301.3,3300.5,0.13671676]
[1768559936028,0.43002636,3301.2,3300.5,0.13671676]
[1768559936327,0.15149,3301.6,3300.5,0.13671676]
[1768559936526,1.39015079,3301.5,3300.5,0.13671676]
[1768559936722,1.39015079,3301.4,3300.5,0.13671676]
[1768559936923,1.39015079,3301.3,3300.5,0.13671676]
[1768559937126,0.43002549,3301.2,3300.5,0.13671676]
[1768559937328,0.15149,3301.6,3300.5,0.13671676]
[1768559937525,1.39015112,3301.5,3300.5,0.13671676]
[1768559937726,1.39015112,3301.4,3300.5,0.13671676]
[1768559937926,1.39015112,3301.3,3300.5,0.13671676]
[1768559938125,0.43002559,3301.2,3300.5,0.13671676]
[1768559938333,0.15149,3301.6,3300.5,0.13671676]
[1768559938522,1.39014762,3301.5,3300.5,0.13671676]
[1768559938719,1.39014762,3301.4,3300.5,0.13671676]
[1768559938924,1.39014762,3301.3,3300.5,0.13671676]
[1768559939121,0.43002566,3301.2,3300.5,0.13671676]
[1768559939326,0.15149,3301.6,3300.5,0.13671676]
[1768559939618,1.39014591,3301.5,3300.5,0.13671676]
[1768559939823,1.39014591,3301.4,3300.5,0.13671676]
[1768559940024,1.39014591,3301.3,3300.5,0.13671676]
[1768559940224,0.43002399,3301.2,3300.5,0.13671676]
[1768559940525,0.15149,3301.6,3300.5,0.13671676]
[1768559940725,1.38922568,3301.5,3300.5,0.13671676]
[1768559941027,1.38922569,3301.4,3300.5,0.13671676]
[1768559941227,1.38922569,3301.3,3300.5,0.13671676]
[1768559941429,0.43002441,3301.2,3300.5,0.13671676]
[1768559941625,0.15149,3301.6,3300.5,0.13671676]
[1768559941927,1.38923447,3301.5,3300.5,0.13671676]
[1768559942128,1.38923447,3301.4,3300.5,0.13671676]
[1768559942328,1.38923447,3301.3,3300.5,0.13671676]
[1768559942527,0.43002716,3301.2,3300.5,0.13671676]
[1768559942728,0.15149,3301.6,3300.5,0.13671676]
[1768559943034,1.38989312,3301.5,3300.5,0.13671676]
[1768559943234,1.38989312,3301.4,3300.5,0.13671676]
[1768559943434,1.38989312,3301.3,3300.5,0.13671676]
[1768559943636,0.43023739,3301.2,3300.2,0.8572472]
[1768559943935,0.15149,3301.6,3300.2,0.8572472]
[1768559944135,1.3899144,3301.5,3300.2,0.8572472]
[1768559944336,1.3899144,3301.4,3300.2,0.8572472]
[1768559944632,1.3899144,3301.3,3300.2,0.8572472]
[1768559944828,0.8572472,3301.0,3299.3,0.13260109]
[1768559945033,0.43023763,3300.9,3299.6,0.13260109]
[1768559945236,0.15151,3301.1,3299.6,0.13260109]
[1768559945436,1.3893428,3301.0,3299.6,0.13260109]
[1768559945641,0.43020187,3300.9,3299.6,0.13260109]
[1768559945840,0.15151,3301.1,3299.6,0.13260109]
[1768559946035,1.38914572,3301.0,3299.6,0.13260109]
[1768559946337,0.15151,3301.1,3299.6,0.13260109]
[1768559946535,0.15151,3301.1,3299.8,0.8572472]
[1768559946536,1.3889022,3301.0,3299.8,0.8572472]
[1768559946737,0.4299256,3300.9,3299.8,0.8572472]
[1768559946925,0.15151,3301.1,3299.8,0.8572472]
[1768559947129,1.38890113,3301.0,3299.6,0.13260109]
[1768559947436,0.42992517,3300.9,3299.6,0.13260109]
[1768559947638,0.15151,3301.1,3299.6,0.13260109]
[1768559947838,1.38854529,3301.0,3299.6,0.13260109]
[1768559948037,0.42981088,3300.9,3299.6,0.13260109]
[1768559948234,0.15151,3301.1,3299.8,0.8572472]
[1768559948543,0.42980486,3301.0,3299.8,0.8572472]
[1768559948736,0.15151,3301.1,3299.8,0.98984829]
[1768559949037,1.38825525,3301.0,3299.8,0.98984829]
[1768559949235,0.4297201,3300.9,3299.8,0.98984829]
[1768559949443,0.15151,3301.1,3299.8,0.98984829]
[1768559949627,1.38810043,3301.0,3299.8,0.98984829]
[1768559949826,0.15151,3301.1,3299.8,0.98984829]
[1768559950033,1.38809864,3301.0,3299.8,0.98984829]
[1768559950234,0.15151,3301.1,3299.8,0.98984829]
[1768559950431,0.42967011,3301.0,3299.8,0.98984829]
[1768559950628,0.15151,3301.1,3299.8,0.98984829]
[1768559950833,0.42963738,3301.0,3299.8,0.98984829]
[1768559951033,0.15151,3301.1,3299.8,0.98984829]
[1768559951230,0.42963812,3301.0,3299.8,0.98984829]
[1768559951430,0.15151,3301.1,3299.8,0.98984829]
[1768559951631,0.42961123,3301.0,3299.8,0.98984829]
[1768559951838,0.15151,3301.1,3299.8,0.98984829]
[1768559952242,0.42961525,3301.0,3299.8,0.98984829]
[1768559952444,0.15151,3301.1,3299.8,0.98984829]
[1768559952643,0.4295872,3301.0,3299.8,0.13260109]
[1768559952943,0.15151,3301.1,3299.8,0.98984829]
[1768559953144,0.42958718,3301.0,3299.8,0.98984829]
[1768559953342,0.15151,3301.1,3299.9,0.13260109]
[1768559953543,0.42956913,3301.0,3300.1,0.8572472]
[1768559953735,0.15151,3301.1,3300.1,0.8572472]
[1768559953935,0.42956915,3301.0,3300.1,0.8572472]
[1768559954145,0.15151,3301.1,3300.1,0.8572472]
[1768559955647,0.15151,3301.1,3300.1,0.98984829]
[1768559956444,0.15151,3301.1,3300.1,0.13260109]
[1768559962460,0.42963781,3301.0,3300.1,0.13260109]
[1768559962759,0.15151,3301.1,3300.1,0.13260109]
[1768559962960,0.42963783,3301.0,3300.1,0.13260109]
[1768559963160,0.15151,3301.1,3300.1,0.13260109]
[1768559963366,0.42964408,3301.0,3300.1,0.13260109]
[1768559963562,0.15151,3301.1,3300.1,0.13260109]
[1768559963858,0.42965206,3301.0,3300.1,0.13260109]
[1768559964060,0.15151,3301.1,3300.1,0.13260109]
[1768559964251,0.42965155,3301.0,3300.1,0.13260109]
[1768559964452,0.15151,3301.1,3300.1,0.13260109]
[1768559964651,0.42966799,3301.0,3300.1,0.13260109]
[1768559964854,0.15151,3301.1,3300.1,0.13260109]
[1768559965053,0.42966761,3301.0,3300.1,0.13260109]
[1768559965262,0.15151,3301.1,3300.1,0.13260109]
[1768559965462,0.42967928,3301.0,3300.1,0.13260109]
[1768559965663,0.15151,3301.1,3300.1,0.13260109]
[1768559965859,0.42968784,3301.0,3300.1,0.13260109]